bitfinex-derivatives/quotes_BNBF0:USTF0_20250315
["timestamp","ask_amount","ask_price","bid_price","bid_amount"]
[1742001114369,0.33637755,594.57,593.43,0.33702374]
[1742001114565,0.29302425,594.53,593.43,0.33702374]
[1742001115467,0.29302425,594.53,593.44,0.30248005]
[1742001115771,0.29302425,594.53,593.45,0.33701238]
[1742001116674,0.29302425,594.53,593.46,0.3024295]
[1742001116972,0.29302425,594.53,593.47,0.33700102]
[1742001117370,0.33637755,594.57,593.47,0.33700102]
[1742001117768,0.29302425,594.52,593.47,0.33700102]
[1742001119470,0.29302425,594.52,593.48,1.164]
[1742001120175,0.29302425,594.52,593.49,0.33698967]
[1742001120377,0.33637755,594.57,593.49,0.33698967]
[1742001122476,0.29290587,594.56,593.49,0.33698967]
[1742001123276,0.33637755,594.57,593.49,0.33698967]
[1742001123875,0.29301315,594.55,593.49,0.33698967]
[1742001124875,0.29301315,594.55,593.5,0.679]
[1742001125171,0.29301315,594.55,593.5,1.01598399]
[1742001126275,0.33637755,594.57,593.5,1.01598399]
[1742001126478,0.29301068,594.54,593.5,1.01598399]
[1742001128073,0.29301068,594.54,593.51,0.786]
[1742001128279,0.29301068,594.54,593.52,0.33697263]
[1742001129375,0.33637755,594.57,593.52,0.33697263]
[1742001129578,0.29300205,594.56,593.52,0.33697263]
[1742001130077,3.24866446,595.35,593.52,0.33697263]
[1742001130272,0.33594812,595.33,593.52,0.33697263]
[1742001130477,0.30922856,595.32,593.52,0.33697263]
[1742001130677,0.33596505,595.3,593.52,0.33697263]
[1742001130878,0.30922856,595.29,593.52,2.19997263]
[1742001131074,0.33598199,595.27,593.52,2.19997263]
[1742001131279,0.30923777,595.26,593.52,2.19997263]
[1742001131579,0.33599892,595.24,593.52,2.19997263]
[1742001131783,0.30923777,595.23,593.52,2.66597263]
[1742001131983,0.33601585,595.21,593.52,2.66597263]
[1742001132184,0.30923777,595.2,593.52,2.66597263]
[1742001132384,0.33603279,595.18,593.53,0.30228405]
[1742001132585,0.30923777,595.17,593.53,0.30228405]
[1742001132979,0.33603279,595.18,593.52,2.66597263]
[1742001133182,0.30924334,595.17,593.53,0.63925062]
[1742001133382,0.33604973,595.15,593.54,0.63924494]
[1742001133582,0.30924334,595.14,593.55,0.30228366]
[1742001133785,0.33606667,595.12,593.54,0.33696128]
[1742001133982,0.30924334,595.11,593.54,0.33696128]
[1742001134179,0.33608361,595.09,593.54,0.33696128]
[1742001134485,0.30924334,595.08,593.55,0.30212574]
[1742001134780,0.33609491,595.07,593.56,0.33694992]
[1742001134984,0.30924334,595.06,593.56,0.33694992]
[1742001135181,0.3361062,595.05,593.56,0.33694992]
[1742001135386,0.30924334,595.04,593.56,0.33694992]
[1742001135587,0.3361175,595.03,593.56,0.33694992]
[1742001135781,0.30924334,595.02,593.56,0.33694992]
[1742001135983,0.3361288,595.01,593.56,0.33694992]
[1742001136285,0.30924334,595.0,593.56,0.33694992]
[1742001136486,0.3361401,594.99,593.56,0.33694992]
[1742001136689,0.30924334,594.98,593.56,0.33694992]
[1742001136889,0.3361514,594.97,593.56,0.33694992]
[1742001137189,0.30924334,594.96,593.56,0.33694992]
[1742001137586,0.3361627,594.95,593.56,0.33694992]
[1742001137891,0.3361627,594.95,593.56,1.11694992]
[1742001138585,0.29291203,594.94,593.56,1.11694992]
[1742001138783,0.60210216,594.94,593.57,0.30214523]
[1742001138991,0.30919013,594.93,593.58,0.33693857]
[1742001139188,0.30919013,594.93,593.59,0.30214523]
[1742001139389,0.30919013,594.93,593.6,0.33692722]
[1742001139586,0.30919013,594.93,593.61,0.30214523]
[1742001139783,0.30919013,594.93,593.62,0.33691587]
[1742001140085,0.30919013,594.93,593.63,0.30214523]
[1742001140283,0.30919013,594.93,593.64,0.33690452]
[1742001140583,0.30914985,594.92,593.65,0.3020274]
[1742001140784,0.30914985,594.93,593.66,0.33689317]
[1742001140985,0.30914985,594.92,593.67,0.3020274]
[1742001141182,0.30914985,594.91,593.68,0.33688182]
[1742001141381,0.30914985,594.93,593.68,0.33688182]
[1742001141588,0.29289847,594.91,593.68,0.33688182]
[1742001141791,0.30914985,594.9,593.68,0.33688182]
[1742001142391,0.30915222,594.89,593.68,0.33688182]
[1742001142693,0.29289847,594.91,593.68,0.33688182]
[1742001143793,0.29289847,594.91,593.68,1.36888182]
[1742001144387,0.3361627,594.95,593.68,1.36888182]
[1742001144589,0.29288492,594.9,593.68,1.36888182]
[1742001145487,0.29288492,594.9,593.69,0.30194592]
[1742001145691,0.29288492,594.9,593.7,0.33687047]
[1742001145894,0.29288492,594.9,593.71,0.30194592]
[1742001146094,0.29288492,594.9,593.72,0.33685912]
[1742001146393,0.29288492,594.9,593.73,0.30194592]
[1742001146699,0.29288492,594.9,593.74,0.33684777]
[1742001147000,0.29288492,594.9,593.75,0.30194592]
[1742001147195,0.29288492,594.9,593.74,0.33684777]
[1742001147404,0.3361627,594.95,593.74,0.33684777]
[1742001147599,0.29287752,594.89,593.74,0.33684777]
[1742001148200,0.29287752,594.89,593.75,0.30199602]
[1742001148900,0.29287752,594.89,593.74,0.33684777]
[1742001150301,0.3361627,594.95,593.74,0.33684777]
[1742001150608,0.29287752,594.88,593.74,0.33684777]
[1742001151007,0.3361627,594.95,593.74,0.33684777]
[1742001151805,0.3361627,594.95,593.75,0.781]
[1742001152000,0.3361627,594.95,593.76,0.33683643]
[1742001152411,0.29276049,594.94,593.77,0.995]
[1742001153201,0.3361627,594.95,593.77,0.995]
[1742001153604,0.29286643,594.93,593.77,0.995]
[1742001154605,0.30915228,594.92,593.77,2.552]
[1742001155702,0.29286643,594.93,593.77,3.88883075]
[1742001155906,0.29286643,594.93,593.78,0.63869783]
[1742001156209,0.29286643,594.93,593.79,0.63869216]
[1742001156410,2.55836763,595.71,593.8,0.63868649]
[1742001156609,0.29281345,595.0,593.81,0.63868081]
[1742001156812,0.3357451,595.69,593.82,0.63867514]
[1742001157011,0.29269031,595.12,593.84,0.33679105]
[1742001157211,0.29269031,595.12,593.85,0.30187275]
[1742001157411,0.3357451,595.69,593.87,0.33677404]
[1742001157614,0.30894463,595.68,593.88,0.30187275]
[1742001157907,0.33576201,595.66,593.89,0.3367627]
[1742001158210,0.30894463,595.65,593.89,0.3367627]
[1742001158414,0.33577892,595.63,593.89,0.3367627]
[1742001158712,0.30894463,595.62,593.89,0.3367627]
[1742001158914,0.33579583,595.6,593.89,0.3367627]
[1742001159414,0.60167926,595.59,593.9,0.30172511]
[1742001159616,0.33581275,595.57,593.91,0.33675135]
[1742001159815,0.30894463,595.56,593.92,0.30172511]
[1742001160016,0.30894463,595.56,593.93,0.33674001]
[1742001160212,0.33582966,595.54,593.94,0.30172511]
[1742001160413,0.30894463,595.53,593.95,0.33672868]
[1742001160611,0.33584658,595.51,593.96,0.30172511]
[1742001160812,0.30894463,595.5,593.97,0.33671734]
[1742001161116,0.30894463,595.49,593.98,0.30172511]
[1742001161414,0.30894463,595.48,593.98,0.30172511]
[1742001161615,0.30894463,595.47,593.98,0.30172511]
[1742001161916,0.30894463,595.46,593.98,0.30172511]
[1742001162109,0.30894463,595.45,593.98,0.30172511]
[1742001162314,0.30894463,595.44,593.98,0.30172511]
[1742001162510,0.30894463,595.43,593.98,0.30172511]
[1742001162814,0.30894463,595.42,593.98,0.30172511]
[1742001163013,0.30894463,595.41,593.98,0.30172511]
[1742001163213,0.30894463,595.4,593.98,0.30172511]
[1742001163410,0.30894463,595.39,593.98,0.30172511]
[1742001163613,0.30894463,595.38,593.98,0.30172511]
[1742001163811,0.30894463,595.43,593.97,0.33671734]
[1742001164117,0.30894463,595.42,593.97,0.33671734]
[1742001164418,0.30894463,595.41,593.97,0.33671734]
[1742001164619,0.29273586,595.44,593.97,0.33671734]
[1742001164820,0.64489135,595.43,593.97,0.33671734]
[1742001165019,0.64489699,595.42,593.97,0.33671734]
[1742001165217,0.29273586,595.44,593.97,0.33671734]
[1742001165218,0.64490264,595.41,593.97,0.33671734]
[1742001165518,0.64490828,595.4,593.97,0.33671734]
[1742001165719,0.64491392,595.39,593.97,0.33671734]
[1742001165920,0.64491956,595.38,593.97,0.33671734]
[1742001166114,0.6449252,595.37,593.97,0.33671734]
[1742001166318,0.64493085,595.36,593.97,0.33671734]
[1742001166621,0.64493649,595.35,593.97,0.33671734]
[1742001166920,0.64494213,595.34,593.97,0.33671734]
[1742001167113,0.64494777,595.33,593.97,0.33671734]
[1742001167319,0.64495342,595.32,593.97,0.33671734]
[1742001167517,0.64495906,595.31,593.97,0.33671734]
[1742001167713,0.6449647,595.3,593.97,0.33671734]
[1742001167914,0.64497035,595.29,593.97,0.33671734]
[1742001168215,0.64497599,595.28,593.97,0.33671734]
[1742001168420,0.64498164,595.27,593.97,0.33671734]
[1742001168624,2.55836763,596.18,593.97,0.33671734]
[1742001168625,0.64505989,595.26,593.97,0.33671734]
[1742001168821,0.64506554,595.25,593.97,0.33671734]
[1742001169021,0.64507118,595.24,593.97,0.33671734]
[1742001169320,0.64507682,595.23,593.97,0.33671734]
[1742001169523,0.30907226,595.22,593.97,0.33671734]
[1742001169728,0.33601585,595.21,593.97,0.33671734]
[1742001170024,0.30907226,595.2,593.97,0.33671734]
[1742001170215,0.33602715,595.19,593.98,1.149]
[1742001170417,0.30907226,595.18,593.98,1.149]
[1742001170622,0.33603844,595.17,593.98,1.149]
[1742001170921,0.30907226,595.16,593.98,1.149]
[1742001171124,0.33604973,595.15,593.98,1.149]
[1742001171315,0.30907226,595.14,593.98,1.149]
[1742001171520,0.33606102,595.13,593.98,1.149]
[1742001171723,0.30907226,595.12,593.98,1.149]
[1742001171923,0.33607232,595.11,593.98,1.149]
[1742001172118,0.30907226,595.1,593.98,1.149]
[1742001172824,0.30907226,595.1,593.99,0.86]
[1742001173216,0.30907226,595.1,594.0,0.30168003]
[1742001174726,0.29276541,595.09,594.0,0.30168003]
[1742001174917,0.29276541,595.09,593.99,0.86]
[1742001175119,0.29276541,595.09,594.01,0.727]
[1742001175523,0.29276541,595.09,594.02,1.115]
[1742001177829,0.30901962,595.08,594.03,0.301687]
[1742001178530,0.30901962,595.08,594.02,1.115]
[1742001178725,0.30901962,595.08,594.03,0.30170063]
[1742001179128,0.29276541,595.09,594.02,1.115]
[1742001179830,0.29276541,595.09,594.02,2.118]
[1742001180431,0.33607232,595.11,594.02,2.118]
[1742001180732,0.29280359,595.08,594.02,2.118]
[1742001181427,0.29280359,595.08,594.02,2.583]
[1742001182132,0.29280359,595.08,594.02,3.518]
[1742001183133,0.29280359,595.08,594.02,4.241]
[1742001184733,0.29280359,595.08,594.02,5.006]
[1742001186434,0.33607232,595.11,594.02,5.006]
[1742001186735,0.29275926,595.07,594.02,5.006]
[1742001187938,0.30905336,595.06,594.02,6.028]
[1742001188132,0.29275926,595.07,594.02,6.028]
[1742001189436,0.33607232,595.11,594.02,6.028]
[1742001189631,0.29278635,595.06,594.02,6.028]
[1742001192237,0.33607232,595.11,594.02,6.028]
[1742001192440,0.30901834,595.1,594.02,6.028]
[1742001192635,0.60168034,595.1,594.02,6.028]
[1742001192835,0.30901834,595.09,594.02,6.028]
[1742001195640,0.30902326,595.08,594.02,6.028]
[1742001195842,0.30902326,595.09,594.02,6.028]
[1742001196034,0.292662,595.1,594.02,6.028]
[1742001196035,0.30902326,595.08,594.02,6.028]
[1742001196241,0.292662,595.1,594.02,6.028]
[1742001196437,0.30902351,595.09,594.02,6.028]
[1742001196936,0.292662,595.1,594.02,6.028]
[1742001197136,0.292662,595.1,594.02,7.101]
[1742001198342,0.33607232,595.11,594.02,7.101]
[1742001198738,0.29277896,595.09,594.02,7.101]
[1742001200843,0.29277896,595.09,594.02,7.869]
[1742001201343,0.33607232,595.11,594.02,7.869]
[1742001201543,0.29277896,595.08,594.02,7.869]
[1742001204445,0.33607232,595.11,594.02,7.869]
[1742001204645,0.29277896,595.07,594.02,7.869]
[1742001205340,0.29277896,595.07,594.02,9.037]
[1742001207244,0.33607232,595.11,594.02,9.037]
[1742001209445,0.29268539,595.1,594.02,9.037]
[1742001210448,0.33607232,595.11,594.02,9.037]
[1742001210650,0.2927765,595.09,594.02,9.037]
[1742001213249,0.33607232,595.11,594.02,9.037]
[1742001213650,0.29275679,595.08,594.02,9.037]
[1742001216350,0.33607232,595.11,594.02,9.037]
[1742001217348,0.33607232,595.11,594.03,0.30176755]
[1742001218350,0.29264232,595.1,594.03,0.30176755]
[1742001219345,0.33607232,595.11,594.03,0.30176755]
[1742001220250,0.33607232,595.11,594.03,1.50776755]
[1742001220553,0.30899369,595.1,594.04,0.30176755]
[1742001220946,0.29275556,595.09,594.04,3.52676755]
[1742001221147,0.30899369,595.08,594.05,0.30176755]
[1742001221347,0.29275556,595.09,594.04,5.229]
[1742001221550,0.29275556,595.09,594.05,0.30175777]
[1742001221551,0.30899317,595.08,594.05,0.30175777]
[1742001221752,0.30899317,595.08,594.05,1.22875777]
[1742001221948,0.30899317,595.08,594.06,0.30175777]
[1742001222550,0.30899317,595.1,594.06,0.30175777]
[1742001222755,0.29275556,595.07,594.06,0.30175777]
[1742001222950,0.30899317,595.06,594.06,0.30175777]
[1742001223251,0.3089971,595.05,594.07,0.30176757]
[1742001223449,0.3089971,595.06,594.06,0.30176757]
[1742001223648,0.3089971,595.05,594.07,0.30176757]
[1742001223955,0.29275556,595.07,594.05,0.927]
[1742001224155,0.29275556,595.07,594.06,0.3018165]
[1742001224956,0.29275556,595.07,594.07,0.3018191]
[1742001225156,0.29275556,595.07,594.06,0.3018191]
[1742001225453,0.33607232,595.11,594.07,0.30182222]
[1742001225650,0.2927531,595.06,594.06,0.746]
[1742001225858,0.2927531,595.06,594.07,0.30182762]
[1742001226652,0.2927531,595.06,594.06,0.746]
[1742001228255,0.33607232,595.11,594.06,0.746]
[1742001228462,0.30899559,595.1,594.07,0.30181685]
[1742001228761,0.29275187,595.05,594.06,0.746]
[1742001229161,0.29275187,595.05,594.07,0.30182207]
[1742001229858,0.29275187,595.05,594.06,0.746]
[1742001231261,0.33607232,595.11,594.06,0.746]
[1742001231661,0.29275187,595.04,594.06,0.746]
[1742001231861,0.33607232,595.11,594.06,0.746]
[1742001233965,0.30900559,595.1,594.06,0.746]
[1742001234167,0.30900559,595.09,594.06,0.746]
[1742001234362,0.30900559,595.08,594.06,0.746]
[1742001234564,0.29275187,595.09,594.06,0.746]
[1742001234769,0.30900559,595.08,594.06,0.746]
[1742001235664,0.30900559,595.08,594.06,2.023]
[1742001236270,0.29275187,595.09,594.06,2.023]
[1742001237264,0.33607232,595.11,594.06,2.023]
[1742001237769,0.29269277,595.1,594.06,2.023]
[1742001239168,0.29269277,595.1,594.06,2.488]
[1742001239368,0.29269277,595.1,594.06,3.472]
[1742001239969,0.29269277,595.1,594.06,4.368]
[1742001243375,0.33607232,595.11,594.06,4.368]
[1742001243977,0.33607232,595.11,594.06,5.605]
[1742001245373,0.29265216,595.1,594.06,5.605]
[1742001246075,0.29265216,595.1,594.07,0.30183544]
[1742001246275,0.29265216,595.1,594.07,0.33666066]
[1742001246479,0.29265216,595.1,594.08,0.30180705]
[1742001246876,0.29265216,595.1,594.09,1.019]
[1742001247081,0.29265216,595.1,594.1,0.30180705]
[1742001248883,0.29265216,595.1,594.09,1.019]
[1742001249384,0.33607232,595.11,594.09,1.019]
[1742001250279,0.33607232,595.11,594.1,0.983]
[1742001252886,0.33607232,595.11,594.11,0.971]
[1742001253287,0.33607232,595.11,594.12,0.891]
[1742001255488,0.29260049,595.1,594.12,0.891]
[1742001255681,0.29260049,595.1,594.13,0.815]
[1742001258391,0.33607232,595.11,594.13,0.815]
[1742001258685,0.29272847,595.09,594.13,0.815]
[1742001261191,0.309005,595.08,594.13,0.815]
[1742001261589,0.2927531,595.07,594.13,0.815]
[1742001262588,0.30901004,595.06,594.13,0.815]
[1742001262793,0.2927531,595.07,594.13,0.815]
[1742001262995,0.30901004,595.06,594.13,0.815]
[1742001263593,0.2927531,595.07,594.13,0.815]
[1742001263789,0.30900945,595.06,594.13,0.815]
[1742001263992,0.2927531,595.07,594.13,0.815]
[1742001264395,0.33607232,595.11,594.13,0.815]
[1742001264592,0.29273586,595.06,594.13,0.815]
[1742001264895,0.29273586,595.06,594.14,1.446]
[1742001266098,0.29273586,595.06,594.15,0.465]
[1742001267299,0.33607232,595.11,594.15,0.465]
[1742001267695,0.2927494,595.05,594.15,0.465]
[1742001268301,0.2927494,595.05,594.15,1.524]
[1742001269998,0.2927494,595.05,594.15,2.498]
[1742001270199,0.2927494,595.05,594.15,3.516]
[1742001272505,0.2927494,595.05,594.15,4.532]
[1742001273300,0.33607232,595.11,594.15,4.532]
[1742001273901,0.2926091,595.1,594.15,4.532]
[1742001275398,0.2926091,595.1,594.15,5.446]
[1742001276404,0.33607232,595.11,594.15,6.297]
[1742001276705,0.29274817,595.09,594.15,7.357]
[1742001279315,0.33607232,595.11,594.15,7.357]
[1742001279501,0.29274817,595.08,594.15,7.357]
[1742001282401,0.33607232,595.11,594.15,7.357]
[1742001282605,0.29274817,595.07,594.15,7.357]
[1742001285305,0.33607232,595.11,594.15,7.357]
[1742001285803,0.29265585,595.1,594.15,7.357]
[1742001288303,0.33607232,595.11,594.15,7.357]
[1742001288708,0.29274817,595.09,594.15,7.357]
[1742001291310,0.33607232,595.11,594.15,7.357]
[1742001291510,0.33607232,595.11,594.15,8.314]
[1742001291703,0.29274817,595.08,594.15,9.2]
[1742001294311,0.33607232,595.11,594.15,9.2]
[1742001294712,0.29274817,595.07,594.15,9.2]
[1742001297311,0.33607232,595.11,594.15,9.2]
[1742001297715,0.29274817,595.06,594.15,9.2]
[1742001300410,0.33607232,595.11,594.15,9.2]
[1742001300610,0.29274817,595.05,594.15,9.2]
[1742001303324,0.33607232,595.11,594.15,9.2]
[1742001303519,0.29273586,595.05,594.15,9.2]
[1742001309428,0.33607232,595.11,594.15,9.2]
[1742001309625,0.29273586,595.05,594.15,9.2]
[1742001312428,0.33607232,595.11,594.15,9.2]
[1742001312830,0.29273586,595.05,594.15,9.2]
[1742001315327,0.33607232,595.11,594.15,9.2]
[1742001315731,0.29273586,595.05,594.15,9.2]
[1742001318437,0.33607232,595.11,594.15,9.2]
[1742001318938,0.29273586,595.05,594.15,9.2]
[1742001319740,0.29273586,595.05,594.16,0.30199758]
[1742001320437,0.29273586,595.05,594.15,1.86]
[1742001320836,0.3090119,595.04,594.15,1.86]
[1742001322145,0.30903875,595.03,594.15,1.86]
[1742001322346,0.30903875,595.04,594.15,1.86]
[1742001322543,0.30903875,595.04,594.15,4.005]
[1742001323047,0.30903875,595.04,594.15,7.089]
[1742001323548,0.30903875,595.04,594.15,8.337]
[1742001323748,0.30903875,595.04,594.15,9.183]
[1742001324648,0.29277034,595.03,594.15,9.183]
[1742001325948,0.30903766,595.02,594.15,9.183]
[1742001326449,0.29277034,595.03,594.15,9.183]
[1742001327344,0.33607232,595.11,594.15,9.183]
[1742001327549,0.30901765,595.1,594.15,9.183]
[1742001327742,0.29275064,595.02,594.15,9.183]
[1742001327948,0.33607232,595.11,594.15,9.183]
[1742001328145,0.30902288,595.1,594.15,9.183]
[1742001329450,0.29275064,595.09,594.15,9.183]
[1742001329651,0.30902765,595.08,594.15,9.183]
[1742001332048,0.29275064,595.09,594.15,9.183]
[1742001333453,0.33607232,595.11,594.15,9.183]
[1742001333851,0.2927728,595.08,594.15,9.183]
[1742001339457,0.33607232,595.11,594.15,9.183]
[1742001339756,0.29275556,595.07,594.15,9.183]
[1742001345356,0.33607232,595.11,594.15,9.183]
[1742001345759,0.29276295,595.06,594.15,9.183]
[1742001348356,0.33607232,595.11,594.15,9.183]
[1742001348557,0.29276295,595.05,594.15,9.183]
[1742001351356,0.33607232,595.11,594.15,9.183]
[1742001351562,0.30904253,595.1,594.15,9.183]
[1742001351864,0.33607232,595.11,594.15,9.183]
[1742001352064,0.30904287,595.1,594.15,9.183]
[1742001353562,0.29277773,595.09,594.15,9.183]
[1742001353759,0.30904287,595.08,594.15,9.183]
[1742001354666,0.30904287,595.07,594.15,9.183]
[1742001354967,0.29277773,595.07,594.15,9.183]
[1742001357358,0.33607232,595.11,594.15,9.183]
[1742001357760,0.29277773,595.06,594.15,9.183]
[1742001358163,0.30904812,595.05,594.15,9.183]
[1742001358368,0.29277773,595.06,594.15,9.183]
[1742001358670,0.30904988,595.05,594.15,9.183]
[1742001360573,0.60185101,595.04,594.15,9.183]
[1742001360768,0.30904988,595.03,594.15,9.183]
[1742001360973,0.30906769,595.02,594.15,9.183]
[1742001361169,0.30906769,595.03,594.15,9.183]
[1742001361373,0.30906769,595.02,594.15,9.183]
[1742001361575,0.30906769,595.03,594.15,9.183]
[1742001361775,0.30906769,595.02,594.15,9.183]
[1742001361976,0.30906769,595.03,594.15,9.183]
[1742001362175,0.30906769,595.02,594.15,9.183]
[1742001362375,0.30906769,595.03,594.15,9.183]
[1742001362674,0.30907995,595.02,594.15,9.183]
[1742001362875,0.30907995,595.01,594.15,9.183]
[1742001363072,0.30907995,595.0,594.15,9.183]
[1742001363270,0.30907995,595.03,594.15,9.183]
[1742001363470,0.29280113,595.04,594.15,9.183]
[1742001363778,0.30907688,595.03,594.15,9.183]
[1742001364478,0.3090851,595.02,594.15,9.183]
[1742001364671,0.3090851,595.01,594.15,9.183]
[1742001364868,0.29280113,595.04,594.15,9.183]
[1742001364869,0.3090851,595.03,594.15,9.183]
[1742001365074,0.3090851,595.02,594.15,9.183]
[1742001365276,0.3090851,595.03,594.15,9.183]
[1742001365477,0.3090851,595.02,594.15,9.183]
[1742001365771,0.3090851,595.01,594.15,9.183]
[1742001365976,0.3090851,595.03,594.15,9.183]
[1742001366180,0.3090851,595.02,594.15,9.183]
[1742001366371,0.3090851,595.01,594.15,9.183]
[1742001366573,0.3090851,595.03,594.15,9.183]
[1742001366774,0.3090851,595.02,594.15,9.183]
[1742001366977,0.3090851,595.01,594.15,9.183]
[1742001367177,0.3090851,595.0,594.15,9.183]
[1742001367379,0.3090851,594.99,594.15,9.183]
[1742001367581,0.3090851,595.03,594.15,9.183]
[1742001367774,0.3090851,595.02,594.15,9.183]
[1742001368074,0.29280113,595.04,594.15,9.183]
[1742001368280,0.30910203,595.03,594.15,9.183]
[1742001369282,0.62891298,595.04,594.15,9.183]
[1742001369480,0.33611185,595.04,594.15,9.183]
[1742001369682,0.30909956,595.03,594.15,9.183]
[1742001369875,0.60191055,595.03,594.15,9.183]
[1742001370075,0.30909781,595.02,594.15,9.183]
[1742001371080,0.29281099,595.03,594.15,9.183]
[1742001372381,0.33611185,595.04,594.15,9.183]
[1742001372577,0.29279128,595.02,594.15,9.183]
[1742001375379,0.33611185,595.04,594.15,9.183]
[1742001375583,0.2927765,595.01,594.15,9.183]
[1742001380891,0.33611185,595.04,594.15,9.183]
[1742001381089,0.30904941,595.03,594.15,9.183]
[1742001382191,0.33611185,595.04,594.15,9.183]
[1742001383295,0.30905267,595.03,594.15,9.183]
[1742001383493,0.33611185,595.04,594.15,9.183]
[1742001386497,0.29269893,595.03,594.15,9.183]
[1742001387496,0.33611185,595.04,594.15,9.183]
[1742001387897,0.29278389,595.02,594.15,9.183]
[1742001397701,0.30904051,595.01,594.15,9.183]
[1742001398095,0.29278389,595.02,594.15,9.183]
[1742001399402,0.33611185,595.04,594.15,9.183]
[1742001399603,0.30903194,595.03,594.15,9.183]
[1742001399903,0.29278389,595.01,594.15,9.183]
[1742001400995,0.30904069,595.0,594.15,9.183]
[1742001403899,0.29278389,595.01,594.15,9.183]
[1742001405506,0.33611185,595.04,594.15,9.183]
[1742001405809,0.29279128,595.0,594.15,9.183]
[1742001408504,0.33611185,595.04,594.15,9.183]
[1742001408705,0.29279128,594.99,594.15,9.183]
[1742001411410,0.33611185,595.04,594.15,9.183]
[1742001411711,0.29279374,594.98,594.15,9.183]
[1742001417419,0.33611185,595.04,594.15,9.183]
[1742001417615,0.29279374,594.97,594.15,9.183]
[1742001418015,0.33611185,595.04,594.15,9.183]
[1742001418215,0.30904152,595.03,594.15,9.183]
[1742001419513,0.29279374,595.02,594.15,9.183]
[1742001419716,0.30904152,595.01,594.15,9.183]
[1742001420818,0.29279867,595.0,594.15,9.183]
[1742001423014,0.6452689,594.99,594.15,9.183]
[1742001423214,0.3361401,594.99,594.15,9.183]
[1742001423813,0.29281345,594.98,594.15,9.183]
[1742001426415,0.3361401,594.99,594.15,9.183]
[1742001426616,0.29281468,594.97,594.15,9.183]
[1742001427617,0.33615705,594.96,594.15,9.183]
[1742001432724,0.29283193,594.95,594.15,9.183]
[1742001435322,0.33615705,594.96,594.15,9.183]
[1742001435818,0.29283316,594.94,594.15,9.183]
[1742001438424,0.33615705,594.96,594.15,9.183]
[1742001438626,0.29283316,594.93,594.15,9.183]
[1742001440722,0.30910536,594.92,594.15,9.183]
[1742001441124,0.29283316,594.93,594.15,9.183]
[1742001441325,0.30911048,594.92,594.15,9.183]
[1742001441624,0.29283316,594.92,594.15,9.183]
[1742001442625,0.30910989,594.91,594.15,9.183]
[1742001443030,0.29283316,594.92,594.15,9.183]
[1742001444525,0.33615705,594.96,594.15,9.183]
[1742001444726,0.29283316,594.91,594.15,9.183]
[1742001447439,0.33615705,594.96,594.15,9.183]
[1742001447935,0.29283809,594.9,594.15,9.183]
[1742001450434,0.33615705,594.96,594.15,9.183]
[1742001450629,0.30911181,594.95,594.15,9.183]
[1742001450833,0.2928233,594.89,594.15,9.183]
[1742001451033,0.6454585,594.88,594.15,9.183]
[1742001451238,0.64546416,594.87,594.15,9.183]
[1742001451535,0.64546981,594.86,594.15,9.183]
[1742001451736,0.64547546,594.85,594.15,9.183]
[1742001451934,0.64548111,594.84,594.15,9.183]
[1742001452137,0.64548676,594.83,594.15,9.183]
[1742001452333,0.64549242,594.82,594.15,9.183]
[1742001452538,0.30925625,594.81,594.15,9.183]
[1742001452738,0.30925625,594.8,594.15,9.183]
[1742001452932,0.30925625,594.79,594.15,9.183]
[1742001453135,0.30925625,594.78,594.15,9.183]
[1742001453337,0.64552068,594.77,594.15,9.183]
[1742001453540,0.33627009,594.76,594.15,9.183]
[1742001453733,0.64572001,594.76,594.15,9.183]
[1742001453938,0.30944992,594.75,594.15,9.183]
[1742001454138,0.64573132,594.74,594.15,9.183]
[1742001454339,0.64573697,594.73,594.15,9.183]
[1742001454542,0.64574262,594.72,594.15,9.183]
[1742001454743,0.64574828,594.71,594.15,9.183]
[1742001454942,0.64575393,594.7,594.15,9.183]
[1742001455142,0.64575959,594.69,594.15,6.295]
[1742001455447,0.64576524,594.68,592.82,0.29306004]
[1742001455641,0.33632664,594.66,592.83,0.64099279]
[1742001455840,0.30944992,594.65,592.84,0.6409871]